bitfinex-derivatives/quotes_ETHF0:USTF0_20251005
["timestamp","ask_amount","ask_price","bid_price","bid_amount"]
[1759663549992,4.29308496,4551.6,4551.5,0.69575734]
[1759663550196,0.8850906,4551.6,4551.5,0.91565734]
[1759663550906,1.1749906,4551.6,4551.5,0.00205734]
[1759663553408,1.1749906,4551.6,4551.5,0.34055734]
[1759663555104,0.4477906,4551.6,4551.5,0.91565734]
[1759663555304,0.6635906,4551.6,4551.5,0.91565734]
[1759663555604,0.8797906,4551.6,4551.5,0.91565734]
[1759663556005,1.1696906,4551.6,4551.5,0.69575734]
[1759663557306,0.4477906,4551.6,4551.5,0.91565734]
[1759663560612,0.00165958,4551.6,4551.5,0.91565734]
[1759663562317,0.21745958,4551.6,4551.5,0.91565734]
[1759663562712,0.00165958,4551.6,4551.5,0.91565734]
[1759663565517,3.2078,4551.8,4551.7,0.4429]
[1759663565716,3.13373391,4551.8,4551.7,0.7814]
[1759663565916,3.2078,4552.4,4552.0,0.1322]
[1759663566121,0.44971712,4552.3,4552.2,0.7814]
[1759663566418,0.45252947,4552.3,4552.2,0.7814]
[1759663567418,0.66832947,4552.3,4552.2,0.7814]
[1759663568226,0.45252947,4552.3,4552.2,0.7814]
[1759663569523,0.88452947,4552.3,4552.2,0.7814]
[1759663569926,0.45252947,4552.3,4552.2,0.7814]
[1759663570524,0.45176638,4552.3,4552.2,0.7814]
[1759663570718,1.17526638,4552.3,4551.5,0.00205734]
[1759663570923,3.6398,4551.8,4551.7,0.7814]
[1759663571123,4.08875403,4551.8,4551.7,0.7814]
[1759663571523,3.87295403,4551.8,4551.7,0.7814]
[1759663571725,0.022,4552.9,4552.3,0.3385]
[1759663572025,0.1337,4554.0,4552.0,0.1322]
[1759663572026,0.3287,4555.1,4553.7,0.3385]
[1759663572219,0.2158,4555.8,4554.4,3.2078]
[1759663572414,0.1337,4554.5,4553.9,1.17180108]
[1759663572619,3.7735,4554.5,4554.2,1.71272203]
[1759663572816,0.13529372,4554.5,4554.1,3.2078]
[1759663573017,0.3287,4554.4,4554.1,3.2078]
[1759663573230,0.00159372,4554.5,4554.1,3.2078]
[1759663573622,0.13529372,4554.5,4554.1,3.2078]
[1759663573823,0.5445,4555.4,4554.1,3.38559549]
[1759663574022,3.2078,4556.2,4555.3,3.2078]
[1759663574227,0.1337,4556.5,4555.3,3.2078]
[1759663574427,0.3287,4555.4,4555.3,3.2078]
[1759663574623,0.7607,4555.4,4555.3,3.2078]
[1759663574927,0.3287,4554.4,4554.3,0.222]
[1759663575127,0.5445,4554.4,4554.3,0.222]
[1759663575323,0.1337,4554.5,4554.3,0.222]
[1759663575523,0.3287,4554.4,4554.3,0.222]
[1759663575821,0.3287,4554.4,4554.3,0.22444963]
[1759663576930,0.5445,4554.4,4554.3,0.22444963]
[1759663577729,0.7607,4554.4,4554.3,0.00244963]
[1759663577922,0.3137,4554.3,4554.1,3.2078]
[1759663578128,0.4151,4554.2,4554.1,3.2078]
[1759663578429,0.7288,4554.2,4554.1,3.2078]
[1759663578627,5.7288,4554.2,4554.1,1.67861991]
[1759663578827,0.7288,4553.1,4553.0,3.2078]
[1759663579027,0.7288,4553.1,4553.0,3.20945953]
[1759663579729,3.2078,4554.2,4553.0,3.20945953]
[1759663579730,0.7288,4554.1,4554.0,0.2079]
[1759663580326,0.31570556,4555.4,4554.1,0.3282]
[1759663580533,0.00200556,4555.4,4555.3,3.9545]
[1759663580734,0.52250556,4555.4,4555.3,4.1765]
[1759663580935,0.73080556,4555.4,4555.3,3.8483]
[1759663581131,0.73080556,4555.4,4555.3,3.4298]
[1759663581435,0.73080556,4555.4,4554.8,3.2078]
[1759663581627,0.3137,4555.3,4554.9,0.222]
[1759663581824,0.5205,4555.0,4554.9,0.7581]
[1759663582029,0.7288,4555.0,4554.9,0.7581]
[1759663582230,0.7288,4555.0,4554.9,0.4299]
[1759663582630,0.522,4555.0,4554.9,0.4299]
[1759663582827,0.3137,4555.3,4554.8,0.222]
[1759663583034,0.3137,4554.9,4554.7,0.222]
[1759663583338,0.1313,4555.0,4554.7,0.222]
[1759663583540,0.3137,4554.9,4554.7,0.222]
[1759663584436,0.1313,4555.0,4554.7,0.222]
[1759663584936,0.3137,4554.9,4554.3,3.2078]
[1759663585136,3.18425785,4554.9,4554.3,3.536]
[1759663585436,0.7288,4554.9,4554.8,3.4157]
[1759663585631,0.7288,4554.9,4554.8,3.9545]
[1759663585836,0.7288,4554.9,4554.8,3.6263]
[1759663586638,0.7288,4554.9,4554.8,3.4157]
[1759663587734,0.7288,4554.9,4554.8,3.2078]
[1759663589536,0.7288,4554.9,4554.8,3.4157]
[1759663590432,0.00200556,4555.4,4554.8,3.6263]
[1759663590633,0.00200556,4555.4,4555.3,0.7467]
[1759663590837,0.00200556,4555.4,4555.3,0.9687]
[1759663591238,0.00200556,4555.4,4555.3,4.1765]
[1759663591744,0.20940556,4555.4,4555.3,4.1765]
[1759663592245,0.75550556,4555.4,4555.3,4.1765]
[1759663592541,0.00200556,4555.4,4555.3,4.1765]
[1759663595635,0.20940556,4555.4,4555.3,4.1765]
[1759663595846,0.75550556,4555.4,4555.3,4.1765]
[1759663596347,0.00200556,4555.4,4555.3,4.1765]
[1759663596746,0.00200556,4555.4,4555.3,3.9545]
[1759663596942,0.00200556,4555.4,4555.3,4.1765]
[1759663599646,0.75550556,4555.4,4555.3,4.1582]
[1759663599950,0.20940556,4555.4,4555.3,4.1582]
[1759663600949,0.54780556,4555.4,4555.3,4.1582]
[1759663601953,0.00200556,4555.4,4555.3,4.1582]
[1759663606653,0.54780556,4555.4,4555.3,4.1582]
[1759663606951,0.00200556,4555.4,4555.3,4.1582]
[1759663607255,0.21820556,4555.4,4555.3,4.1582]
[1759663608055,0.53200556,4555.4,4555.3,4.1582]
[1759663608856,0.75300556,4555.4,4555.3,3.947]
[1759663609054,0.31580556,4555.4,4555.3,3.947]
[1759663609252,0.53200556,4555.4,4555.3,0.7392]
[1759663609450,0.75300556,4555.4,4555.3,0.7392]
[1759663610251,0.089,4555.7,4555.3,3.947]
[1759663610454,0.089,4555.7,4555.6,0.7392]
[1759663610654,0.089,4555.7,4555.6,0.9612]
[1759663611353,0.00261324,4555.7,4555.6,0.6341]
[1759663612058,0.21881324,4555.7,4555.6,0.9612]
[1759663612357,0.00261324,4555.7,4555.6,0.9612]
[1759663613550,0.089,4555.8,4555.6,5.9612]
[1759663613752,0.089,4555.8,4555.7,0.7392]
[1759663614653,3.5216,4557.0,4555.7,0.4121]
[1759663614958,3.5216,4557.0,4556.9,0.7392]
[1759663614959,3.7378,4557.0,4556.9,0.7392]
[1759663615161,4.0827,4557.0,4556.9,0.7392]
[1759663615454,4.0827,4557.0,4556.5,0.3271]
[1759663615759,6.93872133,4557.0,4556.5,0.0026747]
[1759663616058,0.751,4556.6,4556.5,0.0026747]
[1759663616462,3.59297555,4556.6,4556.5,0.0026747]
[1759663616757,8.59297555,4556.6,4556.5,0.0026747]
[1759663617557,8.81597555,4556.6,4556.5,0.0026747]
[1759663617956,10.17466659,4556.6,4556.5,0.0026747]
[1759663618154,10.39766659,4556.6,4556.5,0.0026747]
[1759663618553,10.39766659,4556.6,4554.7,34.25]
[1759663618554,0.4372,4555.4,4555.3,0.2055]
[1759663618854,0.751,4555.4,4555.3,0.2055]
[1759663619248,0.3138,4555.3,4555.0,3.5349]
[1759663619452,0.3138,4555.2,4555.0,3.21011789]
[1759663619647,0.751,4555.1,4555.0,3.21011789]
[1759663619853,0.751,4555.1,4555.0,3.41561789]
[1759663620054,0.53,4555.1,4555.0,3.94931789]
[1759663620457,0.751,4555.1,4555.0,3.94931789]
[1759663621653,0.751,4555.1,4555.0,0.00231789]
[1759663621849,3.65847446,4555.1,4555.0,0.00231789]
[1759663622756,8.65847446,4555.1,4555.0,0.00231789]
[1759663623553,0.8749,4554.0,4553.9,3.2078]
[1759663623753,1.0979,4554.0,4553.9,3.4133]
[1759663624152,1.0979,4554.0,4553.9,3.2078]
[1759663624347,0.53,4554.0,4553.9,0.7392]
[1759663624548,0.753,4554.0,4553.9,0.74161502]
[1759663624754,0.974,4554.0,4553.9,0.74161502]
[1759663624948,1.0979,4554.0,4553.9,0.41451502]
[1759663625156,1.0979,4554.0,4553.9,0.20791502]
[1759663625560,0.8749,4554.0,4553.9,0.20791502]
[1759663625754,4.00440647,4554.0,4553.9,0.00241502]
[1759663627057,9.00440647,4554.0,4553.9,0.00241502]
[1759663627252,9.00440647,4554.0,4552.8,3.5349]
[1759663627253,0.2162,4552.9,4552.8,3.5349]
[1759663627459,0.751,4552.9,4552.8,3.6199]
[1759663627659,0.751,4552.9,4552.8,3.4133]
[1759663628155,0.751,4552.9,4552.8,0.20803629]
[1759663628461,0.75360292,4552.9,4552.8,0.74173629]
[1759663628961,0.75360292,4552.9,4552.8,0.41463629]
[1759663629261,0.75360292,4552.9,4552.8,0.00253629]
[1759663631260,0.75360292,4552.9,4552.8,0.20803629]
[1759663631661,0.75360292,4552.9,4552.8,0.00253629]
[1759663632254,3.6564481,4552.9,4552.8,0.00253629]
[1759663633057,0.1239,4552.0,4551.9,0.2055]
[1759663633267,1.0979,4552.0,4551.9,0.2055]
[1759663633761,0.751,4551.9,4551.8,3.2078]
[1759663634171,3.63465186,4551.9,4551.8,0.0022142]
[1759663634574,0.3138,4552.4,4551.8,3.9492142]
[1759663634769,0.753,4552.4,4552.3,0.7392]
[1759663636768,0.53,4552.4,4552.3,0.7392]
[1759663637267,0.753,4552.4,4552.3,0.7392]
[1759663637477,0.53,4552.4,4552.3,0.7392]
[1759663637670,0.9638,4552.4,4552.3,0.7392]
[1759663638170,0.7408,4552.4,4552.3,0.7392]
[1759663638571,0.9638,4552.4,4552.3,0.7392]
[1759663639074,0.7408,4552.4,4552.3,0.7392]
[1759663639269,0.9638,4552.4,4552.3,0.7392]
[1759663639575,0.7408,4552.4,4552.3,0.2055]
[1759663639774,0.7408,4552.4,4552.3,0.4169]
[1759663639968,0.9638,4552.4,4552.3,0.4169]
[1759663640973,0.9638,4552.4,4551.8,3.2100142]
[1759663641171,0.3292,4552.3,4551.8,3.5421142]
[1759663641370,0.5475,4551.9,4551.8,3.9732142]
[1759663642069,0.7583,4551.9,4551.8,3.9732142]
[1759663642276,0.7583,4551.9,4551.8,3.6411142]
[1759663642676,0.7583,4551.9,4551.8,3.4297142]
[1759663642878,0.7583,4551.9,4551.8,3.9732142]
[1759663643570,0.5475,4551.9,4551.8,3.9732142]
[1759663643978,0.7583,4551.9,4551.8,3.9732142]
[1759663644476,0.7583,4551.9,4551.8,3.6411142]
[1759663645572,0.7583,4551.9,4551.8,3.4297142]
[1759663646380,0.7583,4551.9,4551.8,3.9732142]
[1759663646580,0.7695,4551.9,4551.8,3.9732142]
[1759663647577,0.5475,4551.9,4551.8,3.9732142]
[1759663647975,0.4403,4551.9,4551.8,3.9732142]
[1759663648171,0.5475,4551.9,4551.8,3.9732142]
[1759663648572,0.7583,4551.9,4551.8,3.9732142]
[1759663648979,0.9803,4551.9,4551.8,3.9732142]
[1759663649681,0.7583,4551.9,4551.8,3.9732142]
[1759663650474,0.5475,4551.9,4551.8,3.9732142]
[1759663650681,0.7591,4551.9,4551.8,3.9732142]
[1759663654383,0.7591,4551.9,4551.8,3.4297142]
[1759663655377,0.7591,4551.9,4551.8,3.7631142]
[1759663655779,0.7591,4551.9,4551.8,3.4297142]
[1759663656286,6.83565672,4551.9,4551.8,0.0022142]
[1759663657477,6.83565672,4551.9,4551.8,0.2250142]
[1759663657682,6.83565672,4551.9,4551.8,0.4468142]
[1759663657882,7.05765672,4551.9,4551.8,0.7802142]
[1759663658488,7.05765672,4551.9,4551.8,0.4468142]
[1759663658986,7.05765672,4551.9,4551.8,0.2250142]
[1759663659581,6.84875672,4551.9,4551.8,0.7802142]
[1759663659782,6.07655672,4551.9,4551.8,0.7802142]
[1759663659979,3.2078,4552.4,4551.9,0.3334]
[1759663660186,3.2078,4552.4,4552.3,0.778]
[1759663660384,3.4298,4552.4,4552.3,0.778]
[1759663660789,4.1871,4552.4,4552.3,0.778]
[1759663661086,4.1871,4552.4,4552.3,0.4446]
[1759663661288,3.9651,4552.4,4552.3,0.4446]
[1759663661475,3.2078,4552.4,4552.3,0.4446]
[1759663661681,3.2078,4552.4,4552.3,0.778]
[1759663662789,3.5325,4552.4,4552.3,0.778]
[1759663663588,3.7535,4552.4,4552.3,0.778]
[1759663663784,3.2078,4552.4,4552.3,0.778]
[1759663664083,3.7535,4552.4,4552.3,0.778]
[1759663665591,3.2078,4552.4,4552.3,0.778]
[1759663665890,3.4298,4552.4,4552.3,0.778]
[1759663666092,3.2078,4552.4,4552.3,0.778]
[1759663666293,3.6508,4552.4,4552.3,0.778]
[1759663666488,3.9755,4552.4,4552.3,0.778]
[1759663667493,3.7535,4552.4,4552.3,0.778]
[1759663667692,3.9755,4552.4,4552.3,0.778]
[1759663667987,3.2078,4552.4,4552.3,0.778]
[1759663668294,3.4298,4552.4,4552.3,0.778]
[1759663668796,3.9659,4552.4,4552.3,0.778]
[1759663669093,3.2078,4552.4,4552.3,0.778]
[1759663669296,0.7581,4552.4,4552.3,0.7534]
[1759663669495,0.978,4552.4,4552.3,0.7534]
[1759663669694,0.756,4552.4,4552.3,0.7534]
[1759663669895,0.5361,4552.5,4552.4,0.5176]
[1759663670099,1.1019,4552.5,4552.4,0.4324]
[1759663670598,1.1019,4552.5,4552.4,0.7412]
[1759663670993,1.1019,4552.5,4552.4,0.4324]
[1759663671490,0.3214,4552.8,4552.5,0.3088]
[1759663671696,3.64500292,4552.9,4552.8,0.2236]
[1759663671896,3.86700292,4552.9,4552.1,0.3088]
[1759663672098,0.3214,4552.8,4552.1,0.3088]
[1759663672296,0.222,4552.7,4552.1,0.3088]
[1759663672492,0.3214,4552.6,4552.1,0.3088]
[1759663672791,0.3214,4552.5,4552.1,0.3088]
[1759663672997,0.7581,4552.4,4552.3,0.7412]
[1759663673193,0.2147,4552.5,4552.4,0.7412]
[1759663673398,0.978,4552.5,4552.4,0.7412]
[1759663674399,0.756,4552.5,4552.4,0.7412]
[1759663674803,0.222,4552.5,4552.1,0.3088]
[1759663675097,0.5361,4552.7,4552.6,0.7412]
[1759663675302,0.7581,4552.7,4552.6,0.7412]
[1759663675498,0.5361,4552.7,4552.6,0.7412]
[1759663675702,0.7581,4552.7,4552.6,0.7412]
[1759663676002,0.978,4552.7,4552.6,0.7412]
[1759663676196,0.756,4552.7,4552.6,0.7412]
[1759663676403,0.978,4552.7,4552.6,0.7412]
[1759663676799,0.3214,4552.8,4552.7,0.3088]
[1759663677003,3.64500292,4552.9,4552.8,0.7412]
[1759663677305,3.86700292,4552.9,4552.8,0.2236]
[1759663677499,4.18840292,4552.9,4552.8,0.2236]
[1759663677804,4.18840292,4552.9,4552.5,0.3088]
[1759663678403,3.96640292,4552.9,4552.8,0.2236]
[1759663678906,4.18840292,4552.9,4552.8,0.2236]
[1759663679106,4.18840292,4552.9,4552.5,0.3088]
[1759663680208,3.96640292,4552.9,4552.8,0.7412]
[1759663680409,4.18840292,4552.9,4552.8,0.7412]
[1759663680811,4.18840292,4552.9,4552.8,0.4324]
[1759663681607,3.96640292,4552.9,4552.8,0.4324]
[1759663681812,3.53180292,4552.9,4552.8,0.4324]
[1759663682005,3.53180292,4552.9,4552.8,0.7412]
[1759663682206,3.96850292,4552.9,4552.8,0.7412]
[1759663682406,4.18840292,4552.9,4552.8,0.7412]
[1759663682712,4.18840292,4552.9,4552.8,0.4324]
[1759663682908,3.86700292,4552.9,4552.3,3.2078]
[1759663683114,0.756,4552.4,4552.3,3.2078]
[1759663683410,0.4346,4552.4,4551.8,3.5188142]
[1759663683711,0.3459,4552.5,4551.8,3.9512142]
[1759663683712,0.756,4551.9,4551.8,3.9512142]
[1759663684113,0.756,4551.9,4551.8,3.6424142]
[1759663684514,0.756,4551.9,4551.8,3.4336142]
[1759663685615,0.756,4551.9,4551.8,3.9512142]
[1759663692319,0.5361,4552.8,4552.7,0.7412]
[1759663692719,3.33026419,4552.8,4552.7,0.7412]
[1759663692917,3.22876419,4552.8,4552.3,3.2078]
[1759663693123,0.5361,4552.4,4552.3,3.949]
[1759663693918,0.3459,4553.0,4552.3,3.949]
[1759663694124,0.5361,4552.4,4552.3,3.6402]
[1759663694321,3.10421915,4552.8,4552.3,3.6402]
[1759663694624,0.2147,4552.5,4552.4,0.7412]
[1759663694824,0.5361,4552.5,4552.4,0.7412]
[1759663695421,0.2147,4552.6,4552.5,0.3088]
[1759663695623,0.5361,4552.6,4552.5,0.7412]
[1759663699531,0.756,4552.6,4552.5,0.7412]
[1759663702333,0.756,4552.6,4552.5,0.4324]
[1759663702728,0.756,4552.6,4552.5,0.7505]
[1759663706727,0.4335,4552.5,4552.3,3.5259]
[1759663706933,0.8658,4552.5,4552.4,0.5435]
[1759663707132,0.8658,4552.5,4552.4,0.7525]
[1759663712639,0.7405,4552.5,4552.4,0.7525]
[1759663712937,0.8659,4552.5,4552.4,0.7525]
[1759663716137,0.7405,4552.5,4552.4,0.7525]
[1759663717744,0.8659,4552.5,4552.4,0.7525]
[1759663722846,0.8659,4552.5,4552.4,0.2254]
[1759663723045,0.7645,4551.9,4551.8,1.00324481]
[1759663723346,0.7645,4551.9,4551.8,0.5495142]
[1759663723844,0.7645,4551.9,4551.8,0.0022142]
[1759663726649,0.9865,4551.9,4551.8,0.0022142]
[1759663726950,3.78770356,4551.9,4551.8,0.0022142]
[1759663728149,8.78770356,4551.9,4551.8,0.0022142]
[1759663728351,0.4366,4550.8,4550.7,0.5255]
[1759663728551,0.7693,4550.8,4550.7,0.5255]
[1759663729254,0.7693,4550.8,4550.7,0.22132914]
[1759663729448,0.7693,4550.8,4550.7,0.00252914]
[1759663730555,1.21871495,4550.8,4550.7,0.00252914]
[1759663730853,4.04679125,4550.8,4550.7,0.00252914]
[1759663732050,4.26879125,4550.8,4550.7,0.00252914]
[1759663733254,0.44941495,4550.8,4550.7,3.94382914]
[1759663734547,0.3327,4551.2,4550.7,8.94382914]
[1759663734855,0.44876204,4551.1,4551.0,0.83223461]
[1759663735056,0.26430594,4551.1,4551.0,1.05423461]
[1759663735349,0.7693,4552.1,4552.0,0.7335]
[1759663736457,0.7693,4552.1,4552.0,0.4268]
[1759663736758,0.7693,4552.1,4552.0,0.2188]
[1759663739066,0.3327,4552.1,4552.0,0.7335]
[1759663739354,0.5531,4552.1,4552.0,0.7335]
[1759663742056,0.7693,4552.1,4552.0,0.7335]
[1759663742260,0.7693,4552.1,4552.0,0.4268]
[1759663742462,0.7693,4552.1,4552.0,0.2188]
[1759663742651,0.7693,4552.1,4552.0,0.7335]
[1759663743261,0.9913,4552.1,4552.0,0.7335]
[1759663743860,0.4569,4552.0,4551.6,3.2078]
[1759663744160,0.7693,4551.7,4551.6,3.9413]
[1759663746056,0.5531,4551.7,4551.6,3.9413]
[1759663746259,0.3327,4551.9,4551.6,3.6346]
[1759663746457,0.5531,4551.9,4551.8,0.5255]
[1759663746657,0.5531,4551.9,4551.8,0.7335]
[1759663747165,0.7693,4551.9,4551.8,0.4268]
[1759663747462,0.7693,4551.9,4551.4,0.4408]
[1759663747463,0.8935,4551.5,4551.4,0.4408]
[1759663747661,0.3327,4551.4,4551.1,3.2078]
[1759663747866,0.4366,4551.2,4551.1,3.2078]
[1759663748066,1.21749305,4551.2,4551.1,3.2078]
[1759663748261,1.21749305,4551.2,4551.1,3.4266]
[1759663749964,1.21749305,4551.2,4551.1,3.2078]
[1759663750565,1.21749305,4551.2,4551.1,3.4266]
[1759663752071,1.21749305,4551.2,4551.1,3.2078]
[1759663752269,4.03364882,4551.2,4551.1,3.2078]
[1759663752971,0.7693,4550.8,4550.7,0.22132914]
[1759663753266,1.21749305,4550.8,4550.7,0.22132914]
[1759663755073,1.21749305,4550.8,4550.7,0.00252914]
[1759663756671,1.00129305,4550.8,4550.7,0.73602914]
[1759663757066,1.21749305,4550.8,4550.7,0.73602914]
[1759663757267,1.21749305,4550.8,4550.7,0.42932914]
[1759663757461,1.21749305,4550.8,4550.7,0.73882914]
[1759663758763,0.44819305,4550.8,4550.7,0.73882914]
[1759663758973,0.6664,4551.5,4551.4,0.4272]
[1759663759174,1.11473946,4551.5,4551.4,0.4272]
[1759663759473,1.11473946,4551.5,4551.4,0.7367]
[1759663760065,0.99053946,4551.5,4551.4,0.7367]
[1759663760372,1.32593946,4551.5,4551.4,0.4272]
[1759663760769,1.32593946,4551.5,4551.4,0.7367]
[1759663762564,0.57953946,4551.5,4551.3,0.2043]
[1759663762771,0.99053946,4551.4,4551.3,0.7367]
[1759663765777,0.5422,4551.4,4551.3,0.7367]
[1759663765979,0.98898878,4551.4,4551.3,0.7367]
[1759663766674,0.44678878,4551.4,4551.3,0.7367]
[1759663767076,0.98898878,4551.4,4551.3,0.7367]
[1759663767877,0.7464,4551.3,4551.2,3.4307]
[1759663768079,1.19318878,4551.3,4551.2,3.4307]
[1759663768680,1.19318878,4551.3,4551.2,3.7402]
[1759663769483,1.19318878,4551.3,4551.2,3.9445]
[1759663771081,0.76508878,4551.3,4551.2,3.9445]
[1759663771988,0.98898878,4551.3,4551.2,3.9445]
[1759663772588,1.20158878,4551.3,4551.2,3.9445]
[1759663772887,1.20158878,4551.3,4551.2,3.957]
[1759663773592,0.44678878,4551.3,4551.2,3.957]
[1759663773796,0.75948878,4551.5,4551.2,3.635]
[1759663773987,0.44678878,4551.4,4551.2,3.635]
[1759663774383,0.97228878,4551.4,4551.3,0.7609]
[1759663774588,1.18488878,4551.4,4551.3,0.2146]
[1759663774788,1.18488878,4551.4,4551.3,0.7609]
[1759663775694,0.87218878,4551.4,4551.2,3.2078]
[1759663775894,1.18488878,4551.3,4551.2,3.2078]
[1759663776695,4.06901363,4551.3,4551.2,3.2078]
[1759663779298,4.06901363,4551.3,4551.2,3.9687]
[1759663779495,4.06901363,4551.3,4551.2,3.6467]
[1759663779695,4.29101363,4551.3,4551.2,3.4224]
[1759663780900,4.29150171,4551.3,4551.2,3.4224]
[1759663781697,1.18537686,4551.3,4551.2,3.4224]
[1759663781904,1.40737686,4551.3,4551.2,3.7444]
[1759663782202,1.40737686,4551.3,4551.2,3.4224]
[1759663782405,1.18537686,4551.3,4551.2,3.4224]
[1759663782602,1.40737686,4551.3,4551.2,3.7444]
[1759663783104,1.18537686,4551.3,4551.2,3.9687]
[1759663792107,4.07944738,4551.3,4551.2,3.2078]
[1759663792312,4.07944738,4551.3,4551.2,3.4256]
[1759663797610,4.07944738,4551.3,4551.2,3.2078]
[1759663800109,0.7713,4550.8,4550.7,3.97502914]
[1759663800315,1.21857686,4550.8,4550.7,3.97502914]
[1759663801715,1.21857686,4550.8,4550.7,3.21032914]
[1759663802215,1.44057686,4550.8,4550.7,3.97502914]
[1759663802415,1.44057686,4550.8,4550.7,3.64882914]
[1759663803014,1.44057686,4550.8,4550.7,3.97502914]
[1759663803918,0.66927686,4550.8,4550.7,3.97502914]
[1759663804108,1.21747686,4550.8,4550.7,3.97502914]
[1759663804509,4.27935742,4550.8,4550.7,3.42812914]
[1759663805517,4.05735742,4550.8,4550.7,3.42812914]
[1759663805712,4.27935742,4550.8,4550.7,3.42812914]
[1759663806116,4.27935742,4550.8,4550.7,0.00252914]
[1759663808819,4.28007359,4550.8,4550.7,0.00252914]
[1759663809411,0.2258,4549.8,4549.7,3.9725]
[1759663809609,1.38529303,4549.8,4549.7,3.6463]
[1759663809815,1.38529303,4549.8,4549.7,3.9725]
[1759663810322,1.38529303,4549.8,4549.7,3.4256]
[1759663810513,1.38529303,4549.8,4549.7,3.42746555]
[1759663810720,1.38529303,4549.8,4549.7,3.97436555]
[1759663810917,1.38529303,4549.8,4549.7,3.42746555]
[1759663811123,1.21929303,4549.8,4549.7,3.42746555]
[1759663811318,1.44129303,4549.8,4549.7,3.75366555]
[1759663812019,1.21929303,4549.8,4549.7,3.75366555]
[1759663812218,1.44129303,4549.8,4549.7,3.75366555]
[1759663812420,4.31245694,4549.8,4549.7,3.75366555]
[1759663812622,4.31245694,4549.8,4549.7,0.54586555]
[1759663812923,4.31245694,4549.8,4549.7,0.00186555]
[1759663813619,4.09045694,4549.8,4549.7,0.76656555]
[1759663813813,4.31245694,4549.8,4549.7,0.76656555]
[1759663814012,4.09045694,4549.8,4549.7,0.76656555]
[1759663814216,4.31245694,4549.8,4549.7,0.76656555]
[1759663815019,4.09045694,4549.8,4549.7,0.76656555]
[1759663815215,4.31245694,4549.8,4549.7,0.76656555]
[1759663815618,4.31245694,4549.8,4549.7,0.44036555]
[1759663815817,4.09045694,4549.8,4549.7,0.00186555]
[1759663816019,4.31245694,4549.8,4549.7,0.00186555]
[1759663816323,4.31128469,4549.8,4549.7,0.00186555]
[1759663816521,4.08928469,4549.8,4549.7,0.00186555]
[1759663816720,4.31128469,4549.8,4549.7,0.00186555]
[1759663817124,4.08928469,4549.8,4549.7,0.00186555]
[1759663817323,4.31128469,4549.8,4549.7,0.00186555]
[1759663818126,4.08928469,4549.8,4549.7,0.00186555]
[1759663818421,4.31128469,4549.8,4549.7,0.00186555]
[1759663818623,4.08928469,4549.8,4549.7,0.00186555]
[1759663818816,4.31128469,4549.8,4549.7,0.00186555]
[1759663820022,4.31128469,4549.8,4549.7,0.20846555]
[1759663820719,4.08928469,4549.8,4549.7,0.00186555]
[1759663820919,4.31128469,4549.8,4549.7,0.00186555]
[1759663821127,4.08928469,4549.8,4549.7,0.00186555]
[1759663821627,4.31128469,4549.8,4549.7,0.00186555]
[1759663821828,4.08928469,4549.8,4549.7,0.00186555]
[1759663822327,4.31128469,4549.8,4549.7,0.00186555]
[1759663822724,4.08928469,4549.8,4549.7,0.00186555]
[1759663822927,4.31128469,4549.8,4549.7,0.00186555]
[1759663823423,4.08928469,4549.8,4549.7,0.00186555]
[1759663823630,4.31128469,4549.8,4549.7,0.00186555]
[1759663825333,4.08928469,4549.8,4549.7,0.72946555]
[1759663825541,4.31128469,4549.8,4549.7,0.41886555]
[1759663825732,4.31128469,4549.8,4549.7,0.00186555]
[1759663827537,4.08928469,4549.8,4549.7,0.00186555]
[1759663827735,4.31128469,4549.8,4549.7,0.00186555]
[1759663828139,4.08928469,4549.8,4549.7,0.00186555]
[1759663828437,4.31128469,4549.8,4549.7,0.00186555]
[1759663838738,4.08928469,4549.8,4549.7,0.43386555]
[1759663838941,0.99502078,4549.8,4549.7,0.76886555]
[1759663839138,0.66882078,4549.8,4549.7,0.76886555]
[1759663839639,0.99362078,4549.8,4549.7,0.76886555]
[1759663839838,1.21852078,4549.8,4549.7,0.76886555]
[1759663841443,1.44142078,4549.8,4549.7,0.43386555]
[1759663841641,1.44142078,4549.8,4549.7,0.21796555]
[1759663841842,1.44142078,4549.8,4549.7,0.55296555]
[1759663842043,1.44142078,4549.8,4549.7,0.76886555]
[1759663842239,4.33095258,4549.8,4549.7,0.00186555]
[1759663845447,4.10895258,4549.8,4549.7,0.00186555]
[1759663845643,4.33095258,4549.8,4549.7,0.21796555]
[1759663849048,4.33095258,4549.8,4549.7,0.00186555]
[1759663850958,5.90817709,4549.8,4549.7,0.00186555]
[1759663855860,4.33095258,4549.8,4549.7,0.00186555]
[1759663857661,5.69018949,4549.8,4549.7,0.00186555]
[1759663857960,4.33095258,4549.8,4549.7,0.00186555]
[1759663858261,4.10895258,4549.8,4549.7,0.00186555]
[1759663858762,4.33095258,4549.8,4549.7,0.00186555]
[1759663859249,4.10895258,4549.8,4549.7,0.00186555]
[1759663859955,4.33095258,4549.8,4549.7,0.00186555]
[1759663860159,4.10895258,4549.8,4549.7,0.21316555]
[1759663860359,4.33095258,4549.8,4549.7,0.74776555]
[1759663860854,4.33095258,4549.8,4549.7,0.00186555]
[1759663861359,4.33095258,4549.8,4549.7,0.21316555]
[1759663861559,4.10895258,4549.8,4549.7,0.21316555]
[1759663861761,4.33095258,4549.8,4549.7,0.21316555]
[1759663862060,4.33095258,4549.8,4549.7,0.00186555]
[1759663862561,4.10895258,4549.8,4549.7,0.00186555]
[1759663862761,4.33095258,4549.8,4549.7,0.00186555]
[1759663863259,4.10895258,4549.8,4549.7,0.00186555]
[1759663863464,4.33095258,4549.8,4549.7,0.00186555]
[1759663868058,5.91218949,4549.8,4549.7,0.00186555]
[1759663870764,4.33095258,4549.8,4549.7,0.00186555]
[1759663872159,4.00615258,4549.8,4548.6,3.2078]
[1759663872365,0.7527,4548.8,4548.7,0.5249]
[1759663872553,1.42152078,4548.8,4548.7,0.5249]
[1759663872761,1.42152078,4548.8,4548.7,0.7459]
[1759663873369,1.42382276,4548.8,4548.7,0.747642]
[1759663873766,1.42382276,4548.8,4548.7,0.001742]